bitfinex/quotes_SOLUSD_20230116
["timestamp","ask_amount","ask_price","bid_price","bid_amount"]
[1673883723976,20.0,23.128,23.111,21.46196354]
[1673883724183,20.0,23.128,23.11,23.74]
[1673883724506,49.45,23.127,23.1,23.99]
[1673883724717,20.0,23.126,23.093,20.0]
[1673883724929,17.0,23.125,23.09,23.57]
[1673883725114,49.46,23.125,23.09,45.03196354]
[1673883725327,23.7,23.12,23.09,21.46196354]
[1673883725557,23.81,23.11,23.082,20.0]
[1673883725765,23.81,23.11,23.082,62.76668494]
[1673883725993,20.0,23.108,23.082,62.76668494]
[1673883726290,20.0,23.108,23.082,41.3047214]
[1673883726492,20.0,23.106,23.078,21.46196354]
[1673883726704,20.0,23.106,23.07,23.76]
[1673883726900,166.3084,23.105,23.083,21.46196354]
[1673883727117,20.0,23.104,23.071,20.0]
[1673883727347,20.0,23.104,23.071,46.36743993]
[1673883727547,32.49,23.103,23.072,21.46196354]
[1673883727877,32.49,23.103,23.073,20.0]
[1673883728057,20.0,23.102,23.073,20.0]
[1673883728273,20.0,23.102,23.074,21.46196354]
[1673883728478,49.49,23.101,23.074,21.46196354]
[1673883728690,49.49,23.101,23.075,20.0]
[1673883729129,32.49,23.101,23.076,21.46196354]
[1673883729336,20.0,23.1,23.076,21.46196354]
[1673883729759,49.49,23.099,23.076,21.46196354]
[1673883729970,20.0,23.098,23.076,21.46196354]
[1673883730180,17.0,23.097,23.076,21.46196354]
[1673883730390,49.5,23.097,23.076,21.46196354]
[1673883730585,32.5,23.097,23.076,21.46196354]
[1673883731129,20.0,23.095,23.076,21.46196354]
[1673883731351,32.5,23.096,23.076,21.46196354]
[1673883731542,32.5,23.098,23.076,21.46196354]
[1673883731747,32.49,23.099,23.071,19.02]
[1673883731952,20.0,23.096,23.072,21.46196354]
[1673883732168,17.0,23.095,23.072,21.46196354]
[1673883732374,20.0,23.094,23.072,21.46196354]
[1673883732590,17.0,23.093,23.06,24.03]
[1673883732800,23.81,23.09,23.065,21.46196354]
[1673883733015,20.0,23.089,23.065,21.46196354]
[1673883733224,17.0,23.088,23.065,21.46196354]
[1673883733778,20.0,23.086,23.065,21.46196354]
[1673883733947,17.0,23.085,23.051,20.0]
[1673883734161,23.64,23.08,23.057,21.46196354]
[1673883734367,23.64,23.08,23.051,20.0]
[1673883734368,17.0,23.079,23.059,21.46196354]
[1673883734578,49.52,23.079,23.059,21.46196354]
[1673883734816,32.52,23.079,23.059,21.46196354]
[1673883735139,32.52,23.079,23.051,20.0]
[1673883735140,20.0,23.077,23.051,20.0]
[1673883735307,17.0,23.076,23.051,20.0]
[1673883735524,49.53,23.076,23.052,21.46196354]
[1673883736179,32.53,23.076,23.052,21.46196354]
[1673883736687,114.9843,23.079,23.052,21.46196354]
[1673883737224,114.9843,23.079,23.053,20.0]
[1673883737416,32.52,23.084,23.054,17.0]
[1673883737634,146.9037,23.093,23.06,23.57]
[1673883737836,146.9037,23.093,23.061,17.0]
[1673883738047,146.9037,23.093,23.062,20.0]
[1673883738388,146.9037,23.093,23.063,17.0]
[1673883738598,146.9037,23.093,23.063,38.46196354]
[1673883738908,32.51,23.087,23.065,20.0]
[1673883739112,32.51,23.087,23.066,17.0]
[1673883739333,32.51,23.087,23.066,21.46196354]
[1673883739533,32.51,23.087,23.05,64.86848687]
[1673883739753,20.0,23.086,23.066,21.46196354]
[1673883740065,32.51,23.087,23.066,21.46196354]
[1673883740279,32.51,23.085,23.066,21.46196354]
[1673883740468,32.51,23.086,23.066,21.46196354]
[1673883740682,32.52,23.084,23.066,21.46196354]
[1673883740886,32.51,23.085,23.067,17.0]
[1673883741215,114.4037,23.093,23.067,17.0]
[1673883741216,32.51,23.087,23.068,21.46196354]
[1673883741431,32.51,23.087,23.069,17.0]
[1673883741621,32.5,23.092,23.07,20.0]
[1673883741833,32.5,23.092,23.07,21.46196354]
[1673883742056,20.0,23.086,23.07,21.46196354]
[1673883742263,20.0,23.086,23.06,23.74]
[1673883742481,20.0,23.084,23.061,38.46196354]
[1673883742690,20.0,23.084,23.061,21.46196354]
[1673883742906,20.0,23.084,23.062,21.46196354]
[1673883743114,32.51,23.085,23.062,21.46196354]
[1673883743333,32.5,23.092,23.062,21.46196354]
[1673883744060,52.49,23.099,23.063,24.7910053]
[1673883744374,161.4737,23.099,23.07,23.72]
[1673883744686,161.4737,23.099,23.072,20.0]
[1673883744893,161.4737,23.099,23.073,17.0]
[1673883745100,161.4737,23.099,23.073,38.46196354]
[1673883745311,161.4737,23.099,23.074,21.46196354]
[1673883745510,141.4737,23.099,23.074,21.46196354]
[1673883745723,141.4737,23.099,23.075,17.0]
[1673883745933,20.0,23.098,23.075,17.0]
[1673883746143,20.0,23.098,23.076,21.46196354]
[1673883746462,32.5,23.097,23.077,17.0]
[1673883746672,32.5,23.097,23.065,108.9931]
[1673883746874,20.0,23.096,23.076,21.46196354]
[1673883747090,20.0,23.096,23.077,21.46196354]
[1673883747311,32.5,23.095,23.077,21.46196354]
[1673883747526,108.9837,23.099,23.078,17.0]
[1673883747527,32.5,23.097,23.078,17.0]
[1673883747833,32.5,23.097,23.079,21.46196354]
[1673883748050,32.5,23.098,23.08,17.0]
[1673883748260,32.5,23.098,23.079,21.46196354]
[1673883748261,32.5,23.096,23.079,21.46196354]
[1673883748489,32.5,23.097,23.081,21.46196354]
[1673883748664,32.5,23.098,23.078,17.0]
[1673883748872,20.0,23.097,23.081,21.46196354]
[1673883749300,108.9837,23.099,23.081,21.46196354]
[1673883749614,108.9837,23.099,23.082,17.0]
[1673883749937,20.0,23.099,23.083,21.46196354]
[1673883750156,43.09,23.113,23.083,21.46196354]
[1673883750157,32.5,23.098,23.083,21.46196354]
[1673883750343,32.48,23.107,23.083,21.46196354]
[1673883750684,32.48,23.109,23.084,20.0]
[1673883750871,150.425,23.113,23.084,20.0]
[1673883751083,150.425,23.113,23.085,21.21910781]
[1673883751293,32.47,23.113,23.085,21.21910781]
[1673883751507,119.431,23.114,23.09,23.78]
[1673883751825,119.431,23.114,23.091,37.0]
[1673883752024,119.431,23.114,23.091,103.81459268]
[1673883752234,119.431,23.114,23.092,21.21910781]
[1673883752465,119.431,23.114,23.094,20.0]
[1673883752676,119.431,23.114,23.095,17.0]
[1673883752862,119.431,23.114,23.095,38.21910781]
[1673883753080,119.431,23.114,23.096,21.21910781]
[1673883753411,32.47,23.115,23.097,37.0]
[1673883753606,32.46,23.124,23.1,23.76]
[1673883753819,32.46,23.124,23.102,20.0]
[1673883754036,32.46,23.125,23.103,17.0]
[1673883754231,32.46,23.123,23.103,17.0]
[1673883754443,32.46,23.124,23.104,21.21910781]
[1673883754763,20.0,23.121,23.105,17.0]
[1673883755177,43.09,23.136,23.105,17.0]
[1673883755178,32.46,23.125,23.106,21.21910781]
[1673883755411,32.46,23.125,23.107,17.0]
[1673883755738,20.0,23.134,23.107,17.0]
[1673883756117,20.0,23.132,23.107,17.0]
[1673883756546,32.45,23.131,23.105,21.21910781]
[1673883756755,20.0,23.13,23.101,20.0]
[1673883757183,32.45,23.129,23.102,21.21910781]
[1673883757607,20.0,23.13,23.103,20.0]
[1673883757805,32.45,23.128,23.103,20.0]
[1673883758013,32.45,23.129,23.104,38.21910781]
[1673883758225,32.45,23.127,23.105,20.0]
[1673883758440,32.45,23.128,23.106,17.0]
[1673883758639,32.46,23.126,23.106,38.21910781]
[1673883758855,20.0,23.132,23.106,38.21910781]
[1673883758856,32.45,23.127,23.106,17.0]
[1673883759066,32.45,23.131,23.108,20.0]
[1673883759288,32.46,23.126,23.11,23.58]
[1673883759617,32.45,23.13,23.11,23.58]
[1673883759927,32.45,23.134,23.112,20.0]
[1673883760120,32.45,23.134,23.113,17.0]
[1673883760476,111.5676,23.14,23.12,23.72]
[1673883760660,111.5676,23.14,23.121,17.0]
[1673883760852,111.5676,23.14,23.122,20.0]
[1673883761070,111.5676,23.14,23.123,17.0]
[1673883761278,32.44,23.139,23.123,17.0]
[1673883761919,20.0,23.138,23.123,17.0]
[1673883762108,20.0,23.138,23.112,20.0]
[1673883762320,32.44,23.137,23.112,20.0]
[1673883762538,32.44,23.137,23.109,21.21910781]
[1673883762752,20.0,23.136,23.109,21.21910781]
[1673883763175,49.44,23.135,23.103,20.0]
[1673883763390,20.0,23.134,23.101,41.21910781]
[1673883763588,20.0,23.133,23.101,20.0]
[1673883763798,37.0,23.132,23.101,20.0]
[1673883764123,23.64,23.13,23.101,20.0]
[1673883764340,17.0,23.129,23.097,20.0]
[1673883764547,49.45,23.129,23.097,20.0]
[1673883764735,20.0,23.128,23.097,20.0]
[1673883764951,20.0,23.128,23.098,21.21910781]
[1673883765174,148.1304,23.127,23.098,21.21910781]
[1673883765708,20.0,23.126,23.099,20.0]
[1673883765919,148.1304,23.127,23.099,20.0]
[1673883766131,32.46,23.125,23.1,21.21910781]
[1673883766442,32.46,23.126,23.101,20.0]
[1673883766762,32.46,23.124,23.101,20.0]
[1673883766951,32.46,23.125,23.102,17.0]
[1673883767165,32.46,23.123,23.096,20.0]
[1673883767484,32.46,23.124,23.096,20.0]
[1673883767801,32.46,23.122,23.098,20.0]
[1673883768015,32.46,23.123,23.098,20.0]
[1673883768228,32.46,23.121,23.099,21.21910781]
[1673883768441,20.0,23.121,23.099,21.21910781]
[1673883768756,20.0,23.121,23.1,17.0]
[1673883768757,32.46,23.12,23.1,17.0]
[1673883769165,32.46,23.12,23.099,17.0]
[1673883769498,20.0,23.124,23.101,21.21910781]
[1673883769699,32.47,23.119,23.103,20.0]
[1673883769923,32.46,23.123,23.104,17.0]
[1673883770100,115.6804,23.127,23.104,38.21910781]
[1673883770101,32.46,23.126,23.104,38.21910781]
[1673883770312,115.6804,23.127,23.105,21.21910781]
[1673883770541,115.6804,23.127,23.107,20.0]
[1673883770861,32.46,23.126,23.108,21.21910781]
[1673883771048,32.46,23.126,23.109,20.0]
[1673883771261,32.46,23.126,23.11,17.0]
[1673883771487,115.6804,23.127,23.11,38.21910781]
[1673883771810,115.6804,23.127,23.111,62.43550459]
[1673883772120,115.6804,23.127,23.112,38.21639678]
[1673883772535,115.6804,23.127,23.113,21.21639678]
[1673883773784,52.46,23.126,23.102,20.0]
[1673883773993,69.46,23.126,23.101,20.0]
[1673883774220,20.0,23.125,23.101,20.0]
[1673883774437,17.0,23.124,23.101,20.0]
[1673883774747,20.0,23.123,23.101,20.0]
[1673883774935,20.0,23.123,23.102,17.0]
[1673883775148,20.0,23.121,23.094,41.21639678]
[1673883775583,49.46,23.12,23.094,41.21639678]
[1673883775776,20.0,23.119,23.094,41.21639678]
[1673883775989,32.46,23.12,23.097,41.21639678]
[1673883776413,32.46,23.121,23.097,21.21639678]
[1673883776631,32.47,23.119,23.091,53.29370689]
[1673883776846,76.27,23.12,23.098,21.21639678]
[1673883777043,32.47,23.118,23.098,21.21639678]
[1673883777255,32.47,23.119,23.098,21.21639678]
[1673883777458,32.47,23.117,23.098,21.21639678]
[1673883777668,20.0,23.116,23.091,20.0]
[1673883777900,52.47,23.116,23.092,21.21639678]
[1673883778122,20.0,23.116,23.092,21.21639678]
[1673883778307,32.47,23.115,23.092,21.21639678]
[1673883778520,20.0,23.114,23.092,21.21639678]
[1673883778957,32.47,23.113,23.092,21.21639678]
[1673883779364,32.47,23.113,23.091,20.0]
[1673883779568,20.0,23.112,23.083,20.0]
[1673883779780,20.0,23.112,23.092,21.21639678]
[1673883779990,32.48,23.111,23.092,21.21639678]
[1673883780727,110.2161,23.114,23.092,21.21639678]
[1673883780728,32.47,23.113,23.092,21.21639678]
[1673883781060,20.0,23.112,23.092,21.21639678]
[1673883781589,20.0,23.11,23.092,21.21639678]
[1673883781776,20.0,23.11,23.093,17.0]
[1673883781992,32.48,23.109,23.093,17.0]
[1673883782200,32.48,23.109,23.094,21.21639678]
[1673883782827,32.48,23.109,23.083,20.0]
[1673883783044,147.0405,23.111,23.083,20.0]
[1673883783252,32.48,23.108,23.087,21.21639678]
[1673883783480,20.0,23.109,23.087,21.21639678]
[1673883783669,32.48,23.107,23.083,20.0]
[1673883783876,32.48,23.108,23.084,21.21639678]
[1673883784093,32.48,23.106,23.085,20.0]
[1673883784314,32.48,23.107,23.087,20.0]
[1673883784527,32.48,23.11,23.089,20.0]
[1673883784735,32.48,23.106,23.089,20.0]
[1673883785056,20.0,23.109,23.09,38.21639678]
[1673883785458,32.48,23.108,23.091,21.21639678]
[1673883785670,32.48,23.108,23.092,17.0]
[1673883785879,32.48,23.11,23.093,20.0]
[1673883786102,32.48,23.11,23.094,17.0]
[1673883786323,32.48,23.11,23.093,21.21639678]
[1673883786506,32.48,23.11,23.094,21.21639678]
[1673883786930,32.48,23.11,23.095,17.0]
[1673883787138,32.48,23.11,23.094,21.21639678]
[1673883787569,32.48,23.11,23.089,20.0]
[1673883788104,32.47,23.118,23.095,17.0]
[1673883788310,149.5635,23.118,23.091,20.0]
[1673883788528,149.5635,23.118,23.096,21.21639678]
[1673883788926,32.46,23.123,23.097,17.0]
[1673883789136,149.5535,23.123,23.1,23.81]
[1673883789357,32.46,23.124,23.102,20.0]
[1673883789568,20.0,23.125,23.103,17.0]
[1673883789989,115.6804,23.127,23.103,38.21639678]
[1673883790201,115.6804,23.127,23.104,21.21639678]
[1673883790414,115.6804,23.127,23.105,37.0]
[1673883790819,115.6804,23.127,23.106,21.21639678]
[1673883791035,115.6804,23.127,23.107,17.0]
[1673883791251,115.6804,23.127,23.11,23.69]
[1673883791450,115.6804,23.127,23.112,20.0]
[1673883791785,115.6804,23.127,23.111,21.21639678]
[1673883792100,115.6804,23.127,23.113,38.21639678]
[1673883792286,32.45,23.131,23.113,38.21639678]
[1673883792498,110.7963,23.133,23.114,41.21639678]
[1673883792715,110.7963,23.133,23.115,17.0]
[1673883793026,110.7963,23.133,23.115,38.21639678]
[1673883793248,110.7963,23.133,23.117,20.0]
[1673883793459,110.7963,23.133,23.118,17.0]
[1673883793668,32.44,23.135,23.118,38.21639678]
[1673883793993,32.44,23.137,23.119,21.21639678]
[1673883794179,32.44,23.138,23.12,17.0]
[1673883794835,32.44,23.138,23.121,21.21639678]
[1673883795037,32.44,23.138,23.122,17.0]
[1673883795229,32.44,23.139,23.122,17.0]
[1673883795440,32.44,23.139,23.123,41.21639678]
[1673883795658,43.09,23.144,23.125,20.0]
[1673883795860,43.09,23.144,23.124,21.21639678]
[1673883796080,20.0,23.142,23.122,17.0]
[1673883796281,20.0,23.142,23.12,21.21639678]
[1673883796497,32.44,23.141,23.11,23.81]
[1673883796712,20.0,23.14,23.113,21.21639678]
[1673883797130,20.0,23.14,23.118,21.21639678]
[1673883797344,32.43,23.142,23.121,20.0]
[1673883797561,43.09,23.144,23.12,23.81]
[1673883797877,20.0,23.143,23.122,21.21639678]
[1673883798070,20.0,23.142,23.11,23.62]
[1673883798278,20.0,23.142,23.113,20.0]
[1673883798488,32.44,23.141,23.113,20.0]
[1673883798708,20.0,23.14,23.113,20.0]
[1673883799024,17.0,23.139,23.109,20.0]
[1673883799226,20.0,23.138,23.11,21.08810765]
[1673883799429,17.0,23.137,23.11,21.08810765]
[1673883799643,20.0,23.136,23.101,20.0]
[1673883799852,20.0,23.134,23.108,21.08810765]
[1673883800079,17.0,23.133,23.108,21.08810765]
[1673883800273,20.0,23.132,23.101,20.0]
[1673883800491,17.0,23.131,23.106,21.08810765]
[1673883800692,49.45,23.131,23.101,20.0]
[1673883800919,32.45,23.131,23.103,21.08810765]
[1673883801125,32.45,23.131,23.104,20.0]
[1673883801450,32.45,23.131,23.105,21.08810765]
[1673883801639,32.45,23.131,23.104,20.0]
[1673883801871,32.45,23.131,23.105,38.08810765]
[1673883802207,32.45,23.131,23.106,21.08810765]
[1673883802416,32.45,23.131,23.107,17.0]
[1673883802815,20.0,23.132,23.108,21.08810765]
[1673883803167,32.45,23.13,23.109,17.0]
[1673883803345,20.0,23.129,23.104,20.0]
[1673883803555,52.45,23.129,23.105,21.08810765]
[1673883803764,20.0,23.129,23.105,21.08810765]
[1673883803973,32.45,23.128,23.105,21.08810765]
[1673883804184,20.0,23.127,23.105,21.08810765]
[1673883804388,20.0,23.127,23.1,23.81]
[1673883804623,32.46,23.126,23.104,21.08810765]
[1673883805149,20.0,23.125,23.104,21.08810765]
[1673883805546,32.46,23.124,23.09,23.81]
[1673883805756,20.0,23.122,23.092,41.08810765]
[1673883806182,32.46,23.121,23.092,41.08810765]
[1673883806394,40.8,23.12,23.092,20.0]
[1673883806611,153.8138,23.12,23.09,110.186]
[1673883806831,32.47,23.119,23.093,21.08810765]
[1673883807235,20.0,23.117,23.085,20.0]
[1673883807453,17.0,23.116,23.091,21.08810765]
[1673883807768,32.47,23.116,23.091,21.08810765]
[1673883808200,20.0,23.123,23.092,20.0]
[1673883808816,32.46,23.122,23.094,20.0]
[1673883809038,20.0,23.121,23.095,17.0]
[1673883809350,32.46,23.122,23.095,38.08810765]
[1673883809557,32.46,23.12,23.097,20.0]
[1673883809751,32.46,23.121,23.098,17.0]
[1673883809966,32.46,23.124,23.098,38.08810765]
[1673883810172,32.46,23.12,23.099,41.08810765]
[1673883810395,32.46,23.123,23.1,17.0]
[1673883810605,32.47,23.119,23.1,38.08810765]
[1673883810809,32.46,23.122,23.101,21.08810765]
[1673883811033,32.47,23.118,23.101,21.08810765]
[1673883811245,17.0,23.121,23.101,21.08810765]
[1673883811437,32.46,23.12,23.101,21.08810765]
[1673883811654,32.46,23.122,23.102,17.0]
[1673883811872,32.46,23.125,23.102,17.0]
[1673883812069,32.46,23.121,23.102,38.08810765]
[1673883812398,32.46,23.124,23.102,38.08810765]
[1673883812611,32.46,23.12,23.102,38.08810765]
[1673883812919,32.46,23.125,23.102,38.08810765]
[1673883813144,32.46,23.126,23.103,20.0]
[1673883813356,20.0,23.126,23.104,17.0]
[1673883813548,52.46,23.126,23.104,38.08810765]
[1673883813758,52.46,23.126,23.105,42.1762153]
[1673883813965,32.46,23.126,23.106,17.0]
[1673883814301,112.705,23.127,23.107,41.08810765]
[1673883814501,112.705,23.127,23.108,17.0]
[1673883814713,20.0,23.126,23.108,17.0]
[1673883815031,20.0,23.126,23.107,21.08810765]
[1673883815244,52.46,23.126,23.099,20.0]
[1673883815458,20.0,23.126,23.106,21.08810765]
[1673883815859,20.0,23.126,23.107,17.0]
[1673883816299,20.0,23.126,23.098,110.4146]
[1673883816300,4.98593,23.125,23.085,20.0]
[1673883816618,23.7,23.12,23.094,21.08810765]
[1673883816802,21.98593,23.119,23.094,21.08810765]
[1673883817007,4.98593,23.118,23.094,21.08810765]
[1673883817221,37.0,23.117,23.094,21.08810765]
[1673883817444,4.98593,23.116,23.094,21.08810765]
[1673883817868,49.47,23.115,23.085,20.0]
[1673883818085,4.98593,23.114,23.089,20.0]
[1673883818611,4.98593,23.114,23.09,21.08810765]
[1673883818817,118.50933,23.114,23.09,21.08810765]
[1673883819040,118.50933,23.114,23.091,20.0]
[1673883819345,113.5234,23.114,23.093,20.0]
[1673883819656,113.5234,23.114,23.095,20.0]
[1673883819875,32.46,23.125,23.096,17.0]
[1673883820060,112.705,23.127,23.097,20.0]
[1673883820276,112.705,23.127,23.098,17.0]
[1673883820605,112.705,23.127,23.098,38.08810765]
[1673883820794,112.705,23.127,23.1,20.0]
[1673883821001,112.705,23.127,23.101,17.0]
[1673883821216,112.705,23.127,23.101,38.08810765]
[1673883821424,112.705,23.127,23.103,20.0]
[1673883821657,112.705,23.127,23.104,17.0]
[1673883821844,112.705,23.127,23.104,38.08810765]
[1673883822051,112.705,23.127,23.105,41.08810765]
[1673883822388,112.705,23.127,23.106,21.08810765]
[1673883822601,32.46,23.126,23.106,21.08810765]
[1673883823031,20.0,23.125,23.106,21.08810765]
[1673883823359,32.46,23.126,23.106,21.08810765]
[1673883823758,112.705,23.127,23.107,17.0]
[1673883824184,32.44,23.134,23.102,20.0]
[1673883824393,32.44,23.134,23.108,21.08810765]
[1673883824616,4.98593,23.133,23.102,20.0]
[1673883824826,24.98593,23.133,23.102,20.0]
[1673883825040,20.0,23.131,23.103,21.08810765]
[1673883825354,21.98593,23.13,23.102,20.0]
[1673883825666,4.98593,23.129,23.102,20.0]
[1673883825877,17.0,23.128,23.094,162.16135672]
[1673883826196,20.0,23.126,23.094,162.16135672]
[1673883826389,21.98593,23.125,23.094,116.246]
[1673883826600,20.0,23.123,23.094,116.246]
[1673883826804,23.81,23.12,23.087,45.91535672]
[1673883827016,41.98593,23.119,23.091,21.08810765]
[1673883827353,23.73,23.11,23.091,21.08810765]
[1673883827541,24.98593,23.118,23.091,21.08810765]
[1673883827752,32.48,23.109,23.082,20.0]
[1673883827964,20.0,23.107,23.083,21.08810765]
[1673883828183,4.98593,23.106,23.081,20.0]
[1673883828505,17.0,23.105,23.081,20.0]
[1673883828713,4.98593,23.104,23.081,20.0]
[1673883828902,4.98593,23.104,23.083,20.0]
[1673883829348,4.98593,23.104,23.085,20.0]
[1673883829562,4.98593,23.104,23.086,17.0]
[1673883829742,111.8917,23.106,23.086,38.08810765]
[1673883829958,111.8917,23.106,23.088,20.0]
[1673883830161,32.48,23.112,23.088,20.0]
[1673883830162,32.48,23.112,23.089,17.0]
[1673883830388,133.6985,23.14,23.1,23.81]
[1673883830598,118.85973,23.13,23.101,17.0]
[1673883830811,20.0,23.128,23.102,20.0]
[1673883831139,4.98593,23.127,23.103,17.0]
[1673883831443,4.98593,23.127,23.103,38.08810765]
[1673883831655,32.46,23.126,23.091,20.0]
[1673883831975,41.98593,23.125,23.094,21.08810765]
[1673883832163,4.98593,23.124,23.096,20.0]
[1673883832372,4.98593,23.124,23.097,17.0]
[1673883832687,4.98593,23.124,23.091,20.0]
[1673883832688,37.44593,23.124,23.091,20.0]
[1673883832898,20.0,23.123,23.093,20.0]
[1673883833112,4.98593,23.122,23.094,17.0]
[1673883833321,37.44593,23.122,23.094,17.0]
[1673883833534,37.44593,23.122,23.094,38.08810765]
[1673883833739,23.81,23.12,23.095,21.08810765]
[1673883833943,20.0,23.118,23.091,20.0]
[1673883834181,21.98593,23.117,23.091,20.0]
[1673883834366,4.98593,23.116,23.091,41.08810765]
[1673883834581,120.54873,23.116,23.093,20.0]
[1673883835002,120.54873,23.116,23.094,21.08810765]
[1673883835436,120.54873,23.116,23.088,20.0]
[1673883835762,32.47,23.115,23.089,21.08810765]
[1673883836069,20.0,23.114,23.089,21.08810765]
[1673883836387,139.8269,23.114,23.089,21.08810765]
[1673883836808,139.8269,23.114,23.09,17.0]
[1673883837118,20.0,23.114,23.091,21.08810765]
[1673883837325,4.98593,23.115,23.092,17.0]
[1673883837724,4.98593,23.115,23.092,21.08810765]
[1673883837938,20.0,23.113,23.093,21.08810765]
[1673883838166,4.98593,23.112,23.093,21.08810765]
[1673883838376,17.0,23.111,23.093,21.08810765]
[1673883838586,20.0,23.109,23.093,21.08810765]
[1673883838795,4.98593,23.11,23.093,21.08810765]
[1673883839012,20.0,23.113,23.093,21.08810765]
[1673883839211,119.8269,23.114,23.093,21.08810765]
[1673883839428,119.8269,23.114,23.094,17.0]
[1673883839640,4.98593,23.113,23.094,17.0]
[1673883839854,20.0,23.112,23.095,21.08810765]
[1673883840358,20.0,23.112,23.08,30.50347187]
[1673883840359,49.48,23.111,23.08,23.68]
[1673883840567,28.62593,23.11,23.089,21.08810765]
[1673883840790,20.0,23.108,23.08,20.0]
[1673883841008,4.98593,23.107,23.082,21.08810765]
[1673883841221,37.46593,23.107,23.082,21.08810765]
[1673883841426,20.0,23.106,23.082,21.08810765]
[1673883841755,138.7689,23.106,23.083,17.0]
[1673883842142,138.7689,23.106,23.084,21.08810765]
[1673883842351,54.47593,23.105,23.079,109.5184]
[1673883842577,4.98593,23.104,23.079,109.5184]
[1673883842775,20.0,23.102,23.079,109.5184]
[1673883843107,20.0,23.102,23.068,20.0]
[1673883843108,122.33663,23.101,23.07,23.63]
[1673883843426,45.62593,23.1,23.07,108.3821]
[1673883843619,24.98593,23.099,23.071,41.08810765]
[1673883843831,57.47593,23.099,23.071,41.08810765]
[1673883844041,57.47593,23.099,23.073,20.0]
[1673883844465,57.47593,23.099,23.074,17.0]
[1673883844682,57.47593,23.099,23.074,37.52733798]
[1673883844872,57.47593,23.099,23.075,20.0]
[1673883845084,37.47593,23.099,23.076,17.0]
[1673883845416,37.47593,23.099,23.077,20.0]
[1673883845417,4.98593,23.098,23.077,20.0]
[1673883846053,117.3507,23.101,23.078,20.52733798]
[1673883846462,20.0,23.1,23.078,20.52733798]
[1673883846682,20.0,23.1,23.073,20.0]
[1673883846683,24.98593,23.1,23.073,20.0]
[1673883846904,4.98593,23.099,23.073,20.0]
[1673883847320,32.5,23.098,23.073,20.0]
[1673883847528,37.48593,23.098,23.073,20.0]
[1673883847716,20.0,23.097,23.071,20.0]
[1673883847930,41.98593,23.097,23.071,20.0]
[1673883848273,20.0,23.095,23.072,20.52733798]
[1673883848574,74.48593,23.097,23.072,20.52733798]
[1673883848792,41.98593,23.097,23.073,20.0]
[1673883849003,41.98593,23.097,23.073,37.0]
[1673883849197,21.98593,23.097,23.073,57.52733798]
[1673883849407,4.98593,23.097,23.073,57.52733798]
[1673883849832,4.98593,23.097,23.073,37.0]